Workbook

Sheet Intro
B2: PEAK RUNOFF PREDICTION BY THE RATIONAL METHOD
B5: Version 1.02a, Released August 2005
B6: Urban Drainage and Flood Control District
B7: Denver, Colorado
B9: Purpose: | C9: This workbook applies the Rational Method to estimate stormwater
C10: runoff and peak flows from small urban catchments,
C11: i.e., typically less than 90 acres.
B13: Function: | C13: 1. To apply the area-weighting method to calculate the representative
C14: runoff coefficient C for a catchment.
C16: 2. To calculate the time of concentration, and then compare with
C17: the empirical time of concentration limit used for the Denver region.
C18: The smaller one is recommended as the rainfall duration for
C19: use with the Rational Method.
C21: 3. To calculate the design rainfall intensity and peak flow rate.
B23: Content: | C23: The workbook consists of the following five sheets:
B25: Intro | C25: Describes the purpose of each sheet in the workbook.
B27: Weighted C | C27: Applies the area-weighting method to determine the runoff C.
B29: Tc and PeakQ | C29: Calculates Tc and Q-peak.
B31: Design Info | C31: Provides the recommended runoff C's for various land uses.
B33: Notation | C33: Defines the variables used.
B35: Acknowledgements: | C35: Spreadsheet Development Team:
C36: Dr. James C.Y. Guo, P.E.
C37: Professor, Department of Civil Engineering
C38: University of Colorado at Denver
C39: Ken A. MacKenzie, P.E.
C40: Urban Drainage and Flood Control District
C41: Wright Water Engineers, Inc.
C42: Denver, Colorado
B44: Comments? | C44: Direct all comments regarding this spreadsheet workbook to: | H44: UDFCD E-Mail
B45: Revisions? | C45: Check for revised versions of this or any other workbook at: | H45: Downloads

Sheet Weighted C
B2: Area-Weighting for Runoff Coefficient Calculation
B5: Project Title:
B6: Catchment ID:
B8: Illustration
B19: Instructions: For each catchment subarea, enter values for A and C.
D21: Subarea | E21: Area | F21: Runoff | G21: Product
D22: ID | E22: acres | F22: Coeff.
E23: A | F23: C* | G23: CA
D24: input | E24: input | F24: input | G24: output
G25: =IF(F25="","",(F25*E25)) -> 
D35: Sum: | E35: =SUM(E25:E34) -> 0 | F35: Sum: | G35: =SUM(G25:G34) -> 0
F37: Area-Weighted Runoff Coefficient (sum CA/sum A) = | G37: =IF(E35=0,"",G35/E35) -> 
B38: *See sheet "Design Info" for inperviousness-based runoff coefficient values.

Sheet Tc and PeakQ
B2: CALCULATION OF A PEAK RUNOFF USING RATIONAL METHOD
B5: Project Title:
B6: Catchment ID:
A8: I. | B8: Catchment Hydrologic Data
B10: Catchment ID =
B11: Area = | D11: Acres
B12: Percent Imperviousness = | D12: %
B13: NRCS Soil Type = | D13: A, B, C, or D
B14: =IF($BA$102="","",$BA$102) -> 
A16: II. | B16: Rainfall Information I (inch/hr) = C1 * P1 /(C2 + Td)^C3
B18: Design Storm Return Period, Tr = | D18: years | E18: (input return period for design storm)
B19: C1 = | E19: (input the value of C1)
B20: C2= | E20: (input the value of C2)
B21: C3= | E21: (input the value of C3)
B22: P1= | D22: inches | E22: (input one-hr precipitation--see Sheet "Design Info")
A24: III. | B24: Analysis of Flow Time (Time of Concentration) for a Catchment
B26: Runoff Coefficient, C = | C26: =IF($BA$100="","",$BA$100) -> 
B27: Overide Runoff Coefficient, C = | D27: (enter an overide C value if desired, or leave blank to accept calculated C.)
B28: 5-yr. Runoff Coefficient, C-5 = | C28: =IF($BA$101="","",$BA$101) -> 
B29: Overide 5-yr. Runoff Coefficient, C = | D29: (enter an overide C-5 value if desired, or leave blank to accept calculated C-5.)
E30: Illustration
B40: NRCS Land | C40: Heavy | D40: Tillage/ | E40: Short | F40: Nearly | G40: Grassed | H40: Paved Areas &
B41: Type | C41: Meadow | D41: Field | E41: Pasture/ | F41: Bare | G41: Swales/ | H41: Shallow Paved Swales
E42: Lawns | F42: Ground | G42: Waterways | H42: (Sheet Flow)
B43: Conveyance | C43: 2.5 | D43: 5 | E43: 7 | F43: 10 | G43: 15 | H43: 20
B45: Calculations: | C45: Reach | D45: Slope | E45: Length | F45: 5-yr | G45: NRCS | H45: Flow | I45: Flow
C46: ID | D46: S | E46: L | F46: Runoff | G46: Convey- | H46: Velocity | I46: Time
F47: Coeff | G47: ance | H47: V | I47: Tf
D48: ft/ft | E48: ft | F48: C-5 | H48: fps | I48: minutes
D49: input | E49: input | F49: output | G49: input | H49: output | I49: output
C50: Overland | F50: =IF(C29="",IF(C28="","",C28),C29) ->  | G50: N/A | H50: =IF(I50>0, +E50/(60*I50),0) -> 0 | I50: =IF(E50>0, 0.395*(1.1-F50)*E50^0.5/D50^0.33, 0) -> 0
C51: 1 | H51: =IF(E51="","",(G51*D51^0.5)) ->  | I51: =IF(H51="","",(E51/(60*H51))) -> 
C52: 2 | H52: =IF(E52="","",(G52*D52^0.5)) ->  | I52: =IF(H52="","",(E52/(60*H52))) -> 
C53: 3 | H53: =IF(E53="","",(G53*D53^0.5)) ->  | I53: =IF(H53="","",(E53/(60*H53))) -> 
C54: 4 | H54: =IF(E54="","",(G54*D54^0.5)) ->  | I54: =IF(H54="","",(E54/(60*H54))) -> 
C55: 5 | H55: =IF(E55="","",(G55*D55^0.5)) ->  | I55: =IF(H55="","",(E55/(60*H55))) -> 
C56: Sum | E56: =SUM(E50:E55) -> 0 | H56: Computed Tc = | I56: =ROUND(SUM(I50:I55),2) -> 0
H57: Regional Tc = | I57: =ROUND(+$E$56/180+10,2) -> 10
H58: User-Entered Tc =
A60: IV. | B60: Peak Runoff Prediction
C61: Rainfall Intensity at Computed Tc, I = | D61: =IF(I56=0,"",($C$19*$C$22/($I$56+$C$20)^$C$21)) ->  | E61: inch/hr | H61: Peak Flowrate, Qp = | I61: =IF($C$27="",IF($C$26="","",IF($D$61="","",$C$26*$C$11*$D$61)),$C$27*$C$11*$D$61) ->  | J61: cfs
C62: Rainfall Intensity at Regional Tc, I = | D62: =IF(I57=10,"",($C$19*$C$22/($I$57+$C$20)^$C$21)) ->  | E62: inch/hr | H62: Peak Flowrate, Qp = | I62: =IF($C$27="",IF($C$26="","",IF($D$62="","",$C$26*$C$11*$D$62)),$C$27*$C$11*$D$62) ->  | J62: cfs
C63: Rainfall Intensity at User-Defined Tc, I = | D63: =IF($I$58="","",($C$19*$C$22/($I$58+$C$20)^$C$21)) ->  | E63: inch/hr | H63: Peak Flowrate, Qp = | I63: =IF($C$27="",IF($C$26="","",IF($D$63="","",$C$26*$C$11*$D$63)),$C$27*$C$11*$D$63) ->  | J63: cfs
B64: =IF($BA$103="","",$BA$103) -> Calculated values for Tc & Qp are based on overide values entered for C & C-5.
BA103: Calculated values for Tc & Qp are based on overide values entered for C & C-5.

Sheet Design Info
A1: Runoff Coefficient vs. Watershed Imperviousness
P3: I. One-hr Precipitation Values for Metro Denver Area
A5: Based on Runoff Coefficient estimating equation published by Urbonas, et.al. (1990) & WEF (1998) | P5: Return period in years | Q5: 2 | R5: 5 | S5: 10 | T5: 50 | U5: 100
P6: Depth in inches | Q6: 0.93 | R6: 1.35 | S6: 1.61 | T6: 2.2 | U6: 2.6
A7: Basic equation for NRCS Soil Types C & D:
P8: II. Recommended Runoff Coefficients for Metro Denver
A9: CCD = KCD + (0.858*i3 - 0.786*i2 + 0.774*i + 0.04)
P10: Land Use or Surface Characteristics | S10: Percent Imper-viousness
A11: Basic equation for NRCS Soil Type A:
A13: CA = KA + (1.31*i3 - 1.44*i2 + 1.135*i - 0.12) in which use values for CA > 0 | P13: Business:
P14: Commercial areas | S14: 95
A15: in which: | B15: i = Ia/100, imperviousness ratio | P15: Neighborhood areas | S15: 85
B16: Ia = watershed imperviousness in percent | P16: Residential:
B17: CA = Runoff Coefficient for NRCS Soil Type A | P17: Single-family | S17: *
B18: KA = Correction factor for CA when the storm return period is greater than 2-years | P18: Multiunit (detached) | S18: 60
B19: CCD = Runoff Coefficient for NRCS Soil Types C and D | P19: Multiunit (attached) | S19: 75
B20: KCD = Correction factor for CCD when the storm return period is greater than 2-years | P20: Half-acre lot or larger | S20: *
P21: Apartments | S21: 80
D22: Values of Correction Factors KCD & KA | P22: Industrial:
B23: NRCS | D23: Storm Return Period | P23: Light areas | S23: 80
B24: Soil Types | C24: 2-yr | D24: 5-yr | E24: 10-yr | F24: 25-yr | G24: 50-yr | H24: 100-yr | P24: Heavy areas | S24: 90
B25: C & D | C25: 0 | D25: [-0.10*i+0.11] | E25: [-0.18*i+0.21] | F25: [-0.28*i+0.33] | G25: [-0.33*i+0.40] | H25: [-0.39*i+0.46] | P25: Parks, cemeteries: | S25: 5
B26: A | C26: 0 | D26: [-0.08*i+0.09] | E26: [-0.14*i+0.17] | F26: [-0.19*i+0.24] | G26: [-0.22*i+0.28] | H26: [-0.25*i+0.32] | P26: Playgrounds: | S26: 10
P27: Schools: | S27: 50
B28: Values of Runoff Coefficient CCD | H28: Values of Runoff Coefficient CA | P28: Railroad yard areas: | S28: 15
A29: Imperv. | B29: Type C and D NRCS Hydrologic Soil Groups | H29: Type A NRCS Hydrologic Soils Group | P29: Undeveloped areas:
A30: Ratio ( i) | B30: 2-yr | C30: 5-yr | D30: 10-yr | E30: 25-yr | F30: 50-yr | G30: 100-yr | H30: 2-yr | I30: 5-yr | J30: 10-yr | K30: 25-yr | L30: 50-yr | M30: 100-yr | P30: Historical Flow Analysis | S30: 2
A31: 0 | B31: =0.858*$A31^3-0.786*$A31^2+0.774*$A31+0.04 -> 0.04 | C31: =(-0.1*$A31+0.11)+$B31 -> 0.15 | D31: =(-0.18*$A31+0.21)+$B31 -> 0.25 | E31: =(-0.28*$A31+0.33)+$B31 -> 0.37 | F31: =(-0.33*$A31+0.4)+$B31 -> 0.44 | G31: =(-0.39*$A31+0.46)+$B31 -> 0.5 | H31: =1.31*$A31^3-1.44*$A31^2+1.135*$A31-0.12 -> -0.12 | I31: =(-0.08*$A31+0.09)+$H31 -> -0.03 | J31: =(-0.14*$A31+0.17)+$H31 -> 0.05 | K31: =(-0.19*$A31+0.24)+$H31 -> 0.12 | L31: =(-0.22*$A31+0.28)+$H31 -> 0.16 | M31: =(-0.25*$A31+0.32)+$H31 -> 0.2 | P31: Greenbelts, agricultural
A32: =A31+0.05 -> 0.05 | B32: 0.07684225 | C32: 0.18184225 | D32: 0.27784225 | E32: 0.39284225 | F32: 0.46034225 | G32: 0.51734225 | H32: -0.06668625 | I32: 0.01931375 | J32: 0.09631375 | K32: 0.16381375 | L32: 0.20231375 | M32: 0.24081375 | P32: Off-site flow analysis | S32: 45
A33: 0.1 | B33: 0.110398 | C33: 0.210398 | D33: 0.302398 | E33: 0.412398 | F33: 0.477398 | G33: 0.531398 | H33: -0.01959 | I33: 0.06241 | J33: 0.13641 | K33: 0.20141 | L33: 0.23841 | M33: 0.27541 | P33: (when land use not defined)
A34: 0.15 | B34: 0.14131075 | C34: 0.23631075 | D34: 0.32431075 | E34: 0.42931075 | F34: 0.49181075 | G34: 0.54281075 | H34: 0.02227125 | I34: 0.10027125 | J34: 0.17127125 | K34: 0.23377125 | L34: 0.26927125 | M34: 0.30477125 | P34: Streets:
A35: 0.2 | B35: 0.170224 | C35: 0.260224 | D35: 0.344224 | E35: 0.444224 | F35: 0.504224 | G35: 0.552224 | H35: 0.05988 | I35: 0.13388 | J35: 0.20188 | K35: 0.26188 | L35: 0.29588 | M35: 0.32988 | P35: Paved | S35: 100
A36: 0.25 | B36: 0.19778125 | C36: 0.28278125 | D36: 0.36278125 | E36: 0.45778125 | F36: 0.51528125 | G36: 0.56028125 | H36: 0.09421875 | I36: 0.16421875 | J36: 0.22921875 | K36: 0.28671875 | L36: 0.31921875 | M36: 0.35171875 | P36: Gravel (packed) | S36: 40
A37: 0.3 | B37: 0.224626 | C37: 0.304626 | D37: 0.380626 | E37: 0.470626 | F37: 0.525626 | G37: 0.567626 | H37: 0.12627 | I37: 0.19227 | J37: 0.25427 | K37: 0.30927 | L37: 0.34027 | M37: 0.37127 | P37: Driveways and sidewalks: | S37: 90
A38: 0.35 | B38: 0.25140175 | C38: 0.32640175 | D38: 0.39840175 | E38: 0.48340175 | F38: 0.53590175 | G38: 0.57490175 | H38: 0.15701625 | I38: 0.21901625 | J38: 0.27801625 | K38: 0.33051625 | L38: 0.36001625 | M38: 0.38951625 | P38: Roofs: | S38: 90
A39: 0.4 | B39: 0.278752 | C39: 0.348752 | D39: 0.416752 | E39: 0.496752 | F39: 0.546752 | G39: 0.582752 | H39: 0.18744 | I39: 0.24544 | J39: 0.30144 | K39: 0.35144 | L39: 0.37944 | M39: 0.40744 | P39: Lawns, sandy soil | S39: 0
A40: 0.45 | B40: 0.30732025 | C40: 0.37232025 | D40: 0.43632025 | E40: 0.51132025 | F40: 0.55882025 | G40: 0.59182025 | H40: 0.21852375 | I40: 0.27252375 | J40: 0.32552375 | K40: 0.37302375 | L40: 0.39952375 | M40: 0.42602375 | P40: Lawns, clayey soil | S40: 0
A41: 0.5 | B41: 0.33775 | C41: 0.39775 | D41: 0.45775 | E41: 0.52775 | F41: 0.57275 | G41: 0.60275 | H41: 0.25125 | I41: 0.30125 | J41: 0.35125 | K41: 0.39625 | L41: 0.42125 | M41: 0.44625 | P41: *Refer to Figures RO-3 through RO-5 in Runoff Chapter
A42: 0.55 | B42: 0.37068475 | C42: 0.42568475 | D42: 0.48168475 | E42: 0.54668475 | F42: 0.58918475 | G42: 0.61618475 | H42: 0.28660125 | I42: 0.33260125 | J42: 0.37960125 | K42: 0.42210125 | L42: 0.44560125 | M42: 0.46910125 | P42: of USDCM.
A43: 0.6 | B43: 0.406768 | C43: 0.456768 | D43: 0.508768 | E43: 0.568768 | F43: 0.608768 | G43: 0.632768 | H43: 0.32556 | I43: 0.36756 | J43: 0.41156 | K43: 0.45156 | L43: 0.47356 | M43: 0.49556
A44: 0.65 | B44: 0.44664325 | C44: 0.49164325 | D44: 0.53964325 | E44: 0.59464325 | F44: 0.63214325 | G44: 0.65314325 | H44: 0.36910875 | I44: 0.40710875 | J44: 0.44810875 | K44: 0.48560875 | L44: 0.50610875 | M44: 0.52660875
A45: 0.7 | B45: 0.490954 | C45: 0.530954 | D45: 0.574954 | E45: 0.624954 | F45: 0.659954 | G45: 0.677954 | H45: 0.41823 | I45: 0.45223 | J45: 0.49023 | K45: 0.52523 | L45: 0.54423 | M45: 0.56323
A46: 0.75 | B46: 0.54034375 | C46: 0.57534375 | D46: 0.61534375 | E46: 0.66034375 | F46: 0.69284375 | G46: 0.70784375 | H46: 0.47390625 | I46: 0.50390625 | J46: 0.53890625 | K46: 0.57140625 | L46: 0.58890625 | M46: 0.60640625
A47: 0.8 | B47: 0.595456 | C47: 0.625456 | D47: 0.661456 | E47: 0.701456 | F47: 0.731456 | G47: 0.743456 | H47: 0.53712 | I47: 0.56312 | J47: 0.59512 | K47: 0.62512 | L47: 0.64112 | M47: 0.65712
A48: 0.85 | B48: 0.65693425 | C48: 0.68193425 | D48: 0.71393425 | E48: 0.74893425 | F48: 0.77643425 | G48: 0.78543425 | H48: 0.60885375 | I48: 0.63085375 | J48: 0.65985375 | K48: 0.68735375 | L48: 0.70185375 | M48: 0.71635375
A49: 0.9 | B49: 0.725422 | C49: 0.745422 | D49: 0.773422 | E49: 0.803422 | F49: 0.828422 | G49: 0.834422 | H49: 0.69009 | I49: 0.70809 | J49: 0.73409 | K49: 0.75909 | L49: 0.77209 | M49: 0.78509
A50: 0.95 | B50: 0.80156275 | C50: 0.81656275 | D50: 0.84056275 | E50: 0.86556275 | F50: 0.88806275 | G50: 0.89106275 | H50: 0.78181125 | I50: 0.79581125 | J50: 0.81881125 | K50: 0.84131125 | L50: 0.85281125 | M50: 0.86431125
A51: 1 | B51: 0.886 | C51: 0.896 | D51: 0.916 | E51: 0.936 | F51: 0.956 | G51: 0.956 | H51: 0.885 | I51: 0.895 | J51: 0.915 | K51: 0.935 | L51: 0.945 | M51: 0.955
B52: Notes: | C52: For Type B Soils, use the average of coefficients CCD and CA.
C53: When the Runoff Coefficient in above table is < 0, use 0.
C54: When compositing the Runoff Coefficient for different soil types, use the table values above regardless if they are < 0.

Sheet Notation
B2: List of Variables
B5: A = | C5: watershed area in acres
B6: C = | C6: runoff coefficient
B7: C1, C2, and C3 = | C7: coefficients in IDF formula
B8: C5 = | C8: 5-yr runoff coefficient
B9: I = | C9: rainfall intensity in inches/hour
B10: ID = | C10: user defined identification number
B11: L = | C11: flow length in ft
B12: S = | C12: slope for flow length in ft/ft
B13: P1 = | C13: one hour precipitation value in inches
B14: Tc = | C14: time of concentration in minutes
B15: Td = | C15: design rainfall duration in minutes
B16: Tf = | C16: flow time in minutes
B17: Tr = | C17: return period in years
B18: Qp = | C18: peak runoff rate in cfs
B19: V = | C19: flow velocity in ft/second
